[Event "Titled Tuesday Blitz February 28 Early 2023"]
[White "Ruge, Edison"]
[Black "Srebrnic, Marko"]
[WhiteFideId "4401000"]
[BlackFideId "14603616"]
[WhiteElo "2175"]
[BlackElo "2341"]
[Result "0-1"]
[Round "02"]
[TimeControl "180+2"]
[Date "2023.02.28"]
[WhiteClock "0:00:12"]
[BlackClock "0:01:06"]

1. e4 {[%clk 0:02:49]}  c5 {[%clk 0:02:55]} 2. Nf3 {[%clk 0:02:49]}  e6 {[%clk 0:02:51]} 3. d3 {[%clk 0:02:50]}  a6 {[%clk 0:02:50]} 4. Nbd2 {[%clk 0:02:51]}  b5 {[%clk 0:02:49]} 5. g3 {[%clk 0:02:51]}  Bb7 {[%clk 0:02:49]} 6. Bg2 {[%clk 0:02:52]}  g6 {[%clk 0:02:49]} 7. O-O {[%clk 0:02:52]}  Bg7 {[%clk 0:02:48]} 8. h4 {[%clk 0:02:53]}  h5 {[%clk 0:02:47]} 9. Ng5 {[%clk 0:02:48]}  f6 {[%clk 0:02:39]} 10. Nh3 {[%clk 0:02:45]}  Ne7 {[%clk 0:02:37]} 11. f4 {[%clk 0:02:44]}  O-O {[%clk 0:02:37]} 12. g4 {[%clk 0:02:43]}  hxg4 {[%clk 0:02:32]} 13. Qxg4 {[%clk 0:02:41]}  f5 {[%clk 0:02:32]} 14. Qg3 {[%clk 0:02:34]}  Nbc6 {[%clk 0:02:20]} 15. e5 {[%clk 0:02:30]}  d6 {[%clk 0:02:18]} 16. Ng5 {[%clk 0:02:25]}  Qd7 {[%clk 0:02:12]} 17. Ndf3 {[%clk 0:02:15]}  dxe5 {[%clk 0:02:09]} 18. fxe5 {[%clk 0:02:13]}  Nd4 {[%clk 0:02:08]} 19. Nxd4 {[%clk 0:01:56]}  Bxg2 {[%clk 0:02:06]} 20. Kxg2 {[%clk 0:01:48]}  cxd4 {[%clk 0:02:06]} 21. Rf2 {[%clk 0:01:22]}  Rac8 {[%clk 0:02:02]} 22. Bf4 {[%clk 0:01:20]}  Nd5 {[%clk 0:02:01]} 23. h5 {[%clk 0:01:04]}  Nxf4+ {[%clk 0:01:54]} 24. Qxf4 {[%clk 0:01:00]}  Qd5+ {[%clk 0:01:54]} 25. Nf3 {[%clk 0:01:00]}  gxh5 {[%clk 0:01:50]} 26. Rh1 {[%clk 0:00:59]}  Rf7 {[%clk 0:01:42]} 27. Rxh5 {[%clk 0:00:56]}  Rcc7 {[%clk 0:01:38]} 28. Re2 {[%clk 0:00:45]}  Bf8 {[%clk 0:01:32]} 29. Rg5+ {[%clk 0:00:40]}  Rg7 {[%clk 0:01:31]} 30. Kf2 {[%clk 0:00:39]}  Rxg5 {[%clk 0:01:24]} 31. Qxg5+ {[%clk 0:00:37]}  Rg7 {[%clk 0:01:25]} 32. Qf6 {[%clk 0:00:32]}  Be7 {[%clk 0:01:24]} 33. Qh6 {[%clk 0:00:30]}  Qxa2 {[%clk 0:01:21]} 34. b3 {[%clk 0:00:28]}  Qa1 {[%clk 0:01:19]} 35. Qxe6+ {[%clk 0:00:27]}  Kf8 {[%clk 0:01:20]} 36. Qc8+ {[%clk 0:00:25]}  Kf7 {[%clk 0:01:19]} 37. Qxf5+ {[%clk 0:00:24]}  Ke8 {[%clk 0:01:19]} 38. Qc8+ {[%clk 0:00:24]}  Bd8 {[%clk 0:01:20]} 39. Qc6+ {[%clk 0:00:18]}  Kf8 {[%clk 0:01:20]} 40. e6 {[%clk 0:00:17]}  Bh4+ {[%clk 0:01:11]} 41. Nxh4 {[%clk 0:00:14]}  Qg1+ {[%clk 0:01:12]} 42. Kf3 {[%clk 0:00:14]}  Qg4+ {[%clk 0:01:06]} 43. Kf2 {[%clk 0:00:13]}  Qg3+ {[%clk 0:01:06]} 44. Kf1 {[%clk 0:00:12]}  Qg1# {[%clk 0:01:06]} 0-1


[Site "https://www.chess.com"]

[Event "Titled Tuesday Blitz February 28 Early 2023"]
[White "lisjakzlatko1"]
[Black "Mazurkiewicz, Michal"]
[BlackFideId "1124943"]
[WhiteElo "2162"]
[BlackElo "2054"]
[Result "0-1"]
[Round "02"]
[TimeControl "180+2"]
[Date "2023.02.28"]
[WhiteClock "0:00:01"]
[BlackClock "0:02:19"]

1. e4 {[%clk 0:03:00]}  d6 {[%clk 0:02:59]} 2. d4 {[%clk 0:02:59]}  Nf6 {[%clk 0:02:59]} 3. Nc3 {[%clk 0:02:57]}  c6 {[%clk 0:03:00]} 4. a4 {[%clk 0:02:52]}  e5 {[%clk 0:02:59]} 5. Bc4 {[%clk 0:02:34]}  Be7 {[%clk 0:03:00]} 6. Nf3 {[%clk 0:02:31]}  Qc7 {[%clk 0:03:00]} 7. O-O {[%clk 0:02:28]}  O-O {[%clk 0:03:00]} 8. h3 {[%clk 0:02:24]}  Nbd7 {[%clk 0:03:01]} 9. Re1 {[%clk 0:02:18]}  b6 {[%clk 0:03:01]} 10. Bg5 {[%clk 0:02:07]}  Bb7 {[%clk 0:02:59]} 11. Qd2 {[%clk 0:01:55]}  a6 {[%clk 0:02:59]} 12. dxe5 {[%clk 0:01:22]}  dxe5 {[%clk 0:02:59]} 13. Nh2 {[%clk 0:01:13]}  b5 {[%clk 0:02:58]} 14. Ba2 {[%clk 0:01:13]}  b4 {[%clk 0:02:49]} 15. Nd1 {[%clk 0:01:06]}  Nc5 {[%clk 0:02:49]} 16. f3 {[%clk 0:00:54]}  a5 {[%clk 0:02:43]} 17. Nf2 {[%clk 0:00:45]}  Bc8 {[%clk 0:02:36]} 18. Nhg4 {[%clk 0:00:33]}  Nxg4 {[%clk 0:02:29]} 19. hxg4 {[%clk 0:00:19]}  Be6 {[%clk 0:02:24]} 20. Bxe6 {[%clk 0:00:15]}  Nxe6 {[%clk 0:02:25]} 21. Bxe7 {[%clk 0:00:12]}  Qxe7 {[%clk 0:02:26]} 22. c3 {[%clk 0:00:09]}  Rfd8 {[%clk 0:02:24]} 23. Qe2 {[%clk 0:00:07]}  bxc3 {[%clk 0:02:20]} 24. bxc3 {[%clk 0:00:06]}  Qc5 {[%clk 0:02:21]} 25. Kh2 {[%clk 0:00:04]}  Nf4 {[%clk 0:02:20]} 26. Qf1 {[%clk 0:00:01]}  Rd2 {[%clk 0:02:19]} 0-1


[Site "https://www.chess.com"]

[Event "Titled Tuesday Blitz February 28 Early 2023"]
[White "Michalski, Olaf"]
[Black "Silva, Pedro Gil Ferreira Da"]
[WhiteFideId "1106740"]
[BlackFideId "1946102"]
[WhiteElo "2173"]
[BlackElo "2255"]
[Result "0-1"]
[Round "02"]
[TimeControl "180+2"]
[Date "2023.02.28"]
[WhiteClock "0:00:01"]
[BlackClock "0:01:21"]

1. d4 {[%clk 0:02:49]}  Nf6 {[%clk 0:02:58]} 2. c4 {[%clk 0:02:49]}  e6 {[%clk 0:02:57]} 3. Nf3 {[%clk 0:02:49]}  Bb4+ {[%clk 0:02:52]} 4. Nbd2 {[%clk 0:02:48]}  O-O {[%clk 0:02:44]} 5. e3 {[%clk 0:02:46]}  b6 {[%clk 0:02:42]} 6. Bd3 {[%clk 0:02:46]}  Bb7 {[%clk 0:02:42]} 7. O-O {[%clk 0:02:46]}  d6 {[%clk 0:02:38]} 8. Qc2 {[%clk 0:02:20]}  Bxd2 {[%clk 0:02:37]} 9. Bxd2 {[%clk 0:02:19]}  Nbd7 {[%clk 0:02:38]} 10. Bc3 {[%clk 0:02:16]}  Qe7 {[%clk 0:02:36]} 11. b4 {[%clk 0:01:50]}  e5 {[%clk 0:02:30]} 12. dxe5 {[%clk 0:01:31]}  dxe5 {[%clk 0:02:31]} 13. e4 {[%clk 0:01:31]}  c5 {[%clk 0:02:20]} 14. a3 {[%clk 0:01:25]}  Rfe8 {[%clk 0:02:14]} 15. Rfe1 {[%clk 0:01:21]}  Rad8 {[%clk 0:02:15]} 16. Nd2 {[%clk 0:00:57]}  Nf8 {[%clk 0:02:09]} 17. Nf1 {[%clk 0:00:51]}  Qd6 {[%clk 0:02:01]} 18. Rad1 {[%clk 0:00:43]}  Ne6 {[%clk 0:02:01]} 19. Ne3 {[%clk 0:00:32]}  Nd4 {[%clk 0:02:00]} 20. Qb1 {[%clk 0:00:26]}  g6 {[%clk 0:01:57]} 21. Nd5 {[%clk 0:00:24]}  Nxd5 {[%clk 0:01:53]} 22. cxd5 {[%clk 0:00:20]}  Rc8 {[%clk 0:01:51]} 23. bxc5 {[%clk 0:00:19]}  Qxc5 {[%clk 0:01:51]} 24. Bb4 {[%clk 0:00:19]}  Qc7 {[%clk 0:01:50]} 25. Rc1 {[%clk 0:00:18]}  Qd7 {[%clk 0:01:51]} 26. a4 {[%clk 0:00:15]}  Rxc1 {[%clk 0:01:46]} 27. Rxc1 {[%clk 0:00:14]}  Rc8 {[%clk 0:01:47]} 28. Bb5 {[%clk 0:00:12]}  Qg4 {[%clk 0:01:42]} 29. Rxc8+ {[%clk 0:00:09]}  Bxc8 {[%clk 0:01:43]} 30. Qf1 {[%clk 0:00:06]}  Qf4 {[%clk 0:01:41]} 31. Qe1 {[%clk 0:00:03]}  Bh3 {[%clk 0:01:41]} 32. f3 {[%clk 0:00:01]}  a5 {[%clk 0:01:24]} 33. Bd2 {[%clk 0:00:01]}  Qf6 {[%clk 0:01:21]} 0-1


[Site "https://www.chess.com"]

[Event "Titled Tuesday Blitz February 28 Early 2023"]
[White "Tymrakiewicz, Rafal"]
[Black "Fabris, Alberto"]
[WhiteFideId "1108832"]
[BlackFideId "801348"]
[WhiteElo "2151"]
[BlackElo "2117"]
[Result "1-0"]
[Round "02"]
[TimeControl "180+2"]
[Date "2023.02.28"]
[WhiteClock "0:00:02"]
[BlackClock "0:00:02"]

1. e4 {[%clk 0:02:59]}  c5 {[%clk 0:02:59]} 2. c3 {[%clk 0:02:59]}  d5 {[%clk 0:03:00]} 3. d3 {[%clk 0:02:58]}  dxe4 {[%clk 0:02:59]} 4. dxe4 {[%clk 0:02:58]}  Qxd1+ {[%clk 0:02:58]} 5. Kxd1 {[%clk 0:02:59]}  Nc6 {[%clk 0:02:56]} 6. Be3 {[%clk 0:02:56]}  b6 {[%clk 0:02:54]} 7. Kc2 {[%clk 0:02:53]}  Nf6 {[%clk 0:02:54]} 8. f3 {[%clk 0:02:53]}  Bb7 {[%clk 0:02:49]} 9. Nd2 {[%clk 0:02:53]}  e6 {[%clk 0:02:49]} 10. Nc4 {[%clk 0:02:53]}  O-O-O {[%clk 0:02:47]} 11. a4 {[%clk 0:02:52]}  Be7 {[%clk 0:02:45]} 12. a5 {[%clk 0:02:47]}  b5 {[%clk 0:02:45]} 13. a6 {[%clk 0:02:48]}  Ba8 {[%clk 0:02:27]} 14. Na5 {[%clk 0:02:48]}  b4 {[%clk 0:02:19]} 15. Nb7 {[%clk 0:02:21]}  Bxb7 {[%clk 0:02:11]} 16. axb7+ {[%clk 0:02:22]}  Kxb7 {[%clk 0:02:11]} 17. Ba6+ {[%clk 0:02:22]}  Kb8 {[%clk 0:02:07]} 18. Ne2 {[%clk 0:02:18]}  Nd7 {[%clk 0:01:51]} 19. Nf4 {[%clk 0:02:03]}  Nb6 {[%clk 0:01:49]} 20. Nd3 {[%clk 0:02:01]}  c4 {[%clk 0:01:44]} 21. Nf2 {[%clk 0:01:16]}  b3+ {[%clk 0:01:33]} 22. Kc1 {[%clk 0:01:15]}  Ne5 {[%clk 0:01:31]} 23. Bd4 {[%clk 0:00:51]}  Bf6 {[%clk 0:01:22]} 24. Rd1 {[%clk 0:00:50]}  Rd7 {[%clk 0:01:13]} 25. Bb5 {[%clk 0:00:50]}  Rdd8 {[%clk 0:01:04]} 26. f4 {[%clk 0:00:41]}  Nd3+ {[%clk 0:00:59]} 27. Nxd3 {[%clk 0:00:39]}  Bxd4 {[%clk 0:00:57]} 28. cxd4 {[%clk 0:00:39]}  cxd3 {[%clk 0:00:53]} 29. Rxd3 {[%clk 0:00:38]}  f5 {[%clk 0:00:49]} 30. exf5 {[%clk 0:00:32]}  exf5 {[%clk 0:00:48]} 31. Kd2 {[%clk 0:00:29]}  Rd6 {[%clk 0:00:37]} 32. Ra3 {[%clk 0:00:19]}  Rhd8 {[%clk 0:00:36]} 33. Raxb3 {[%clk 0:00:19]}  Rxd4 {[%clk 0:00:35]} 34. Ba6 {[%clk 0:00:16]}  Rxd3+ {[%clk 0:00:28]} 35. Rxd3 {[%clk 0:00:16]}  Rxd3+ {[%clk 0:00:24]} 36. Bxd3 {[%clk 0:00:17]}  g6 {[%clk 0:00:23]} 37. g3 {[%clk 0:00:13]}  Kc7 {[%clk 0:00:23]} 38. Bb1 {[%clk 0:00:12]}  Kd6 {[%clk 0:00:23]} 39. Ba2 {[%clk 0:00:12]}  h6 {[%clk 0:00:22]} 40. Kd3 {[%clk 0:00:11]}  g5 {[%clk 0:00:19]} 41. Kd4 {[%clk 0:00:08]}  Nd7 {[%clk 0:00:17]} 42. b4 {[%clk 0:00:05]}  gxf4 {[%clk 0:00:16]} 43. gxf4 {[%clk 0:00:04]}  Nf6 {[%clk 0:00:16]} 44. Bb1 {[%clk 0:00:05]}  Nd5 {[%clk 0:00:14]} 45. Bxf5 {[%clk 0:00:03]}  Nxf4 {[%clk 0:00:13]} 46. Be4 {[%clk 0:00:04]}  Ne6+ {[%clk 0:00:13]} 47. Kc4 {[%clk 0:00:04]}  Ke5 {[%clk 0:00:11]} 48. Bb7 {[%clk 0:00:03]}  Kf4 {[%clk 0:00:08]} 49. Bc8 {[%clk 0:00:03]}  Ng5 {[%clk 0:00:05]} 50. Kc5 {[%clk 0:00:02]}  Ne4+ {[%clk 0:00:02]} 51. Kc6 {[%clk 0:00:02]} 1-0


[Site "https://www.chess.com"]

[Event "Titled Tuesday Blitz February 28 Early 2023"]
[White "Chemin, Justo Reinaldo"]
[Black "Nur-Mukhametova, Alisa"]
[WhiteFideId "2101580"]
[BlackFideId "54117739"]
[WhiteElo "1940"]
[BlackElo "2007"]
[Result "1-0"]
[Round "02"]
[TimeControl "180+2"]
[Date "2023.02.28"]
[WhiteClock "0:00:35"]
[BlackClock "0:00:12"]

1. d4 {[%clk 0:03:00]}  Nf6 {[%clk 0:02:59]} 2. Nf3 {[%clk 0:03:00]}  g6 {[%clk 0:02:59]} 3. c4 {[%clk 0:03:00]}  Bg7 {[%clk 0:02:58]} 4. Nc3 {[%clk 0:03:00]}  d5 {[%clk 0:02:59]} 5. Bg5 {[%clk 0:02:56]}  Ne4 {[%clk 0:02:57]} 6. cxd5 {[%clk 0:02:56]}  Nxg5 {[%clk 0:02:57]} 7. Nxg5 {[%clk 0:02:56]}  e6 {[%clk 0:02:57]} 8. Qd2 {[%clk 0:02:55]}  exd5 {[%clk 0:02:57]} 9. Qe3+ {[%clk 0:02:55]}  Kf8 {[%clk 0:02:53]} 10. Qf4 {[%clk 0:02:50]}  Bf6 {[%clk 0:02:48]} 11. h4 {[%clk 0:02:45]}  c6 {[%clk 0:02:39]} 12. e3 {[%clk 0:02:34]}  Kg7 {[%clk 0:02:31]} 13. Nf3 {[%clk 0:02:28]}  h6 {[%clk 0:02:14]} 14. Bd3 {[%clk 0:02:23]}  Nd7 {[%clk 0:02:02]} 15. O-O-O {[%clk 0:02:12]}  b5 {[%clk 0:02:00]} 16. Ne5 {[%clk 0:02:03]}  Bxe5 {[%clk 0:01:43]} 17. dxe5 {[%clk 0:02:02]}  Qe7 {[%clk 0:01:43]} 18. e4 {[%clk 0:01:52]}  d4 {[%clk 0:01:35]} 19. Ne2 {[%clk 0:01:48]}  Qxe5 {[%clk 0:01:20]} 20. Qxe5+ {[%clk 0:01:47]}  Nxe5 {[%clk 0:01:20]} 21. Nxd4 {[%clk 0:01:47]}  Rd8 {[%clk 0:01:18]} 22. Bc2 {[%clk 0:01:36]}  Bb7 {[%clk 0:01:05]} 23. f3 {[%clk 0:01:30]}  a6 {[%clk 0:01:03]} 24. Nb3 {[%clk 0:01:30]}  Rxd1+ {[%clk 0:00:41]} 25. Rxd1 {[%clk 0:01:29]}  Re8 {[%clk 0:00:41]} 26. Na5 {[%clk 0:01:24]}  Re7 {[%clk 0:00:34]} 27. f4 {[%clk 0:01:12]}  Ng4 {[%clk 0:00:33]} 28. e5 {[%clk 0:01:12]}  Ne3 {[%clk 0:00:28]} 29. Rd2 {[%clk 0:01:12]}  c5 {[%clk 0:00:26]} 30. Nxb7 {[%clk 0:01:03]}  Rxb7 {[%clk 0:00:25]} 31. g3 {[%clk 0:01:00]}  Kf8 {[%clk 0:00:17]} 32. Rd6 {[%clk 0:00:56]}  a5 {[%clk 0:00:16]} 33. Ra6 {[%clk 0:00:54]}  a4 {[%clk 0:00:16]} 34. Rc6 {[%clk 0:00:53]}  c4 {[%clk 0:00:16]} 35. a3 {[%clk 0:00:51]}  Ke7 {[%clk 0:00:16]} 36. h5 {[%clk 0:00:49]}  Nxc2 {[%clk 0:00:15]} 37. Kxc2 {[%clk 0:00:48]}  gxh5 {[%clk 0:00:15]} 38. Rxh6 {[%clk 0:00:47]}  Rd7 {[%clk 0:00:15]} 39. Rxh5 {[%clk 0:00:47]}  Rd3 {[%clk 0:00:16]} 40. e6 {[%clk 0:00:45]}  Kxe6 {[%clk 0:00:14]} 41. Rxb5 {[%clk 0:00:45]}  Rxg3 {[%clk 0:00:14]} 42. Rb4 {[%clk 0:00:45]}  c3 {[%clk 0:00:10]} 43. bxc3 {[%clk 0:00:45]}  Rg2+ {[%clk 0:00:10]} 44. Kd3 {[%clk 0:00:44]}  Ra2 {[%clk 0:00:10]} 45. Rxa4 {[%clk 0:00:44]}  Kf5 {[%clk 0:00:11]} 46. Ra7 {[%clk 0:00:43]}  f6 {[%clk 0:00:11]} 47. Ra4 {[%clk 0:00:42]}  Ke6 {[%clk 0:00:11]} 48. c4 {[%clk 0:00:40]}  Kd6 {[%clk 0:00:11]} 49. Ra6+ {[%clk 0:00:39]}  Kc5 {[%clk 0:00:11]} 50. Rxf6 {[%clk 0:00:39]}  Rxa3+ {[%clk 0:00:12]} 51. Ke4 {[%clk 0:00:38]}  Kxc4 {[%clk 0:00:12]} 52. Rd6 {[%clk 0:00:38]}  Kc5 {[%clk 0:00:12]} 53. Rd2 {[%clk 0:00:38]}  Ra4+ {[%clk 0:00:11]} 54. Ke5 {[%clk 0:00:37]}  Ra8 {[%clk 0:00:11]} 55. f5 {[%clk 0:00:38]}  Re8+ {[%clk 0:00:11]} 56. Kf6 {[%clk 0:00:38]}  Re1 {[%clk 0:00:11]} 57. Kf7 {[%clk 0:00:37]}  Rf1 {[%clk 0:00:11]} 58. f6 {[%clk 0:00:38]}  Rf3 {[%clk 0:00:11]} 59. Kg7 {[%clk 0:00:38]}  Rg3+ {[%clk 0:00:12]} 60. Kf8 {[%clk 0:00:38]}  Rf3 {[%clk 0:00:12]} 61. f7 {[%clk 0:00:38]}  Kc6 {[%clk 0:00:12]} 62. Rg2 {[%clk 0:00:35]}  Rf1 {[%clk 0:00:12]} 63. Kg7 {[%clk 0:00:35]} 1-0


[Site "https://www.chess.com"]

[Event "Titled Tuesday Blitz February 28 Early 2023"]
[White "Bongo Akanga Ndjila, Barthelemy"]
[Black "Sargissyan, Sargis"]
[WhiteFideId "10609431"]
[BlackFideId "13303210"]
[WhiteElo "1768"]
[BlackElo "2109"]
[Result "0-1"]
[Round "02"]
[TimeControl "180+2"]
[Date "2023.02.28"]
[WhiteClock "0:00:24"]
[BlackClock "0:00:19"]

1. d4 {[%clk 0:02:54]}  Nf6 {[%clk 0:02:58]} 2. c4 {[%clk 0:02:53]}  g6 {[%clk 0:02:59]} 3. Nc3 {[%clk 0:02:53]}  Bg7 {[%clk 0:03:00]} 4. e4 {[%clk 0:02:53]}  d6 {[%clk 0:03:00]} 5. Be2 {[%clk 0:02:53]}  O-O {[%clk 0:02:58]} 6. Nf3 {[%clk 0:02:54]}  e5 {[%clk 0:02:56]} 7. O-O {[%clk 0:02:53]}  Nc6 {[%clk 0:02:46]} 8. d5 {[%clk 0:02:53]}  Ne7 {[%clk 0:02:46]} 9. Ne1 {[%clk 0:02:54]}  Nd7 {[%clk 0:02:47]} 10. f3 {[%clk 0:02:54]}  f5 {[%clk 0:02:46]} 11. g4 {[%clk 0:02:54]}  Kh8 {[%clk 0:02:45]} 12. Ng2 {[%clk 0:02:54]}  Ng8 {[%clk 0:02:45]} 13. Be3 {[%clk 0:02:53]}  Bh6 {[%clk 0:02:44]} 14. Qd2 {[%clk 0:02:52]}  Bxe3+ {[%clk 0:02:43]} 15. Qxe3 {[%clk 0:02:52]}  a5 {[%clk 0:02:41]} 16. Rac1 {[%clk 0:02:48]}  Nc5 {[%clk 0:02:40]} 17. h4 {[%clk 0:02:41]}  Nf6 {[%clk 0:02:31]} 18. exf5 {[%clk 0:02:26]}  gxf5 {[%clk 0:02:30]} 19. g5 {[%clk 0:02:26]}  f4 {[%clk 0:02:12]} 20. Qd2 {[%clk 0:02:14]}  Nh5 {[%clk 0:02:09]} 21. Bd3 {[%clk 0:02:13]}  Ng3 {[%clk 0:02:06]} 22. Rfe1 {[%clk 0:02:09]}  h6 {[%clk 0:01:45]} 23. Kf2 {[%clk 0:02:04]}  Nxd3+ {[%clk 0:01:36]} 24. Qxd3 {[%clk 0:02:02]}  Bf5 {[%clk 0:01:36]} 25. Ne4 {[%clk 0:02:00]}  Bxe4 {[%clk 0:01:33]} 26. fxe4 {[%clk 0:01:59]}  hxg5 {[%clk 0:01:33]} 27. hxg5 {[%clk 0:01:58]}  Qxg5 {[%clk 0:01:33]} 28. Rh1+ {[%clk 0:01:59]}  Nxh1+ {[%clk 0:01:28]} 29. Rxh1+ {[%clk 0:02:00]}  Kg7 {[%clk 0:01:28]} 30. Nh4 {[%clk 0:01:56]}  Qg3+ {[%clk 0:01:18]} 31. Qxg3+ {[%clk 0:01:55]}  fxg3+ {[%clk 0:01:19]} 32. Kxg3 {[%clk 0:01:55]}  Rh8 {[%clk 0:01:17]} 33. Nf5+ {[%clk 0:01:55]}  Kf6 {[%clk 0:01:11]} 34. Rf1 {[%clk 0:01:50]}  Rag8+ {[%clk 0:01:09]} 35. Kf3 {[%clk 0:01:48]}  Kf7 {[%clk 0:01:00]} 36. Ke3 {[%clk 0:01:43]}  Rh3+ {[%clk 0:00:57]} 37. Kd2 {[%clk 0:01:43]}  Rg2+ {[%clk 0:00:57]} 38. Kc1 {[%clk 0:01:43]}  Ke8 {[%clk 0:00:57]} 39. c5 {[%clk 0:01:24]}  Kd7 {[%clk 0:00:50]} 40. cxd6 {[%clk 0:01:23]}  cxd6 {[%clk 0:00:50]} 41. a3 {[%clk 0:00:51]}  Rhh2 {[%clk 0:00:35]} 42. Ne3 {[%clk 0:00:47]}  Rxb2 {[%clk 0:00:19]} 43. Rf7+ {[%clk 0:00:42]}  Ke8 {[%clk 0:00:17]} 44. Rc7 {[%clk 0:00:36]}  Rbe2 {[%clk 0:00:15]} 45. Nd1 {[%clk 0:00:27]}  Rh1 {[%clk 0:00:15]} 46. Rc3 {[%clk 0:00:22]}  Ree1 {[%clk 0:00:15]} 47. Rd3 {[%clk 0:00:22]}  Rxd1+ {[%clk 0:00:15]} 48. Rxd1 {[%clk 0:00:21]}  Rxd1+ {[%clk 0:00:14]} 49. Kxd1 {[%clk 0:00:22]}  b5 {[%clk 0:00:15]} 50. Kc2 {[%clk 0:00:23]}  Kf7 {[%clk 0:00:15]} 51. Kb3 {[%clk 0:00:24]}  Kg6 {[%clk 0:00:15]} 52. Kc3 {[%clk 0:00:21]}  Kg5 {[%clk 0:00:15]} 53. a4 {[%clk 0:00:20]}  bxa4 {[%clk 0:00:13]} 54. Kb2 {[%clk 0:00:20]}  Kf4 {[%clk 0:00:13]} 55. Ka3 {[%clk 0:00:21]}  Kxe4 {[%clk 0:00:14]} 56. Kxa4 {[%clk 0:00:22]}  Kxd5 {[%clk 0:00:15]} 57. Kxa5 {[%clk 0:00:23]}  e4 {[%clk 0:00:16]} 58. Kb5 {[%clk 0:00:23]}  Kd4 {[%clk 0:00:16]} 59. Kc6 {[%clk 0:00:24]}  e3 {[%clk 0:00:17]} 60. Kxd6 {[%clk 0:00:25]}  e2 {[%clk 0:00:18]} 61. Kc6 {[%clk 0:00:24]}  e1=Q {[%clk 0:00:19]} 0-1


[Site "https://www.chess.com"]

[Event "Titled Tuesday Blitz February 28 Early 2023"]
[White "Bochnicka, Vladimir"]
[Black "Seifert, Henryk"]
[WhiteFideId "14943450"]
[BlackFideId "1100963"]
[WhiteElo "2094"]
[BlackElo "2071"]
[Result "1-0"]
[Round "02"]
[TimeControl "180+2"]
[Date "2023.02.28"]
[WhiteClock "0:01:11"]
[BlackClock "0:00:01"]

1. e4 {[%clk 0:03:00]}  e6 {[%clk 0:02:58]} 2. d4 {[%clk 0:03:00]}  d5 {[%clk 0:02:58]} 3. Nd2 {[%clk 0:02:59]}  c5 {[%clk 0:02:58]} 4. exd5 {[%clk 0:02:57]}  exd5 {[%clk 0:02:58]} 5. Ngf3 {[%clk 0:02:55]}  Nc6 {[%clk 0:02:57]} 6. Bb5 {[%clk 0:02:56]}  Bd6 {[%clk 0:02:57]} 7. O-O {[%clk 0:02:54]}  cxd4 {[%clk 0:02:54]} 8. Re1+ {[%clk 0:02:52]}  Ne7 {[%clk 0:02:53]} 9. Nb3 {[%clk 0:02:50]}  O-O {[%clk 0:02:45]} 10. Nbxd4 {[%clk 0:02:50]}  Bg4 {[%clk 0:02:37]} 11. Be2 {[%clk 0:02:41]}  Qd7 {[%clk 0:02:25]} 12. c3 {[%clk 0:02:36]}  h6 {[%clk 0:02:14]} 13. h3 {[%clk 0:02:22]}  Bh5 {[%clk 0:02:13]} 14. Be3 {[%clk 0:02:17]}  a6 {[%clk 0:02:07]} 15. Qd2 {[%clk 0:02:17]}  Rfe8 {[%clk 0:01:49]} 16. Bd3 {[%clk 0:02:12]}  Bg6 {[%clk 0:01:47]} 17. Rad1 {[%clk 0:02:04]}  Bxd3 {[%clk 0:01:40]} 18. Qxd3 {[%clk 0:02:04]}  Rad8 {[%clk 0:01:35]} 19. Nb3 {[%clk 0:02:00]}  b5 {[%clk 0:01:10]} 20. Nc5 {[%clk 0:01:55]}  Qc8 {[%clk 0:01:05]} 21. a4 {[%clk 0:01:47]}  bxa4 {[%clk 0:00:45]} 22. Nxa4 {[%clk 0:01:40]}  a5 {[%clk 0:00:40]} 23. Nd4 {[%clk 0:01:36]}  Ne5 {[%clk 0:00:31]} 24. Qb5 {[%clk 0:01:23]}  Nc4 {[%clk 0:00:20]} 25. Nb6 {[%clk 0:01:22]}  Nxb6 {[%clk 0:00:10]} 26. Qxb6 {[%clk 0:01:23]}  Qc7 {[%clk 0:00:08]} 27. Qxc7 {[%clk 0:01:20]}  Bxc7 {[%clk 0:00:09]} 28. Nb5 {[%clk 0:01:13]}  Bb6 {[%clk 0:00:07]} 29. Bxb6 {[%clk 0:01:13]}  Rb8 {[%clk 0:00:07]} 30. Bc5 {[%clk 0:01:11]}  Rxb5 {[%clk 0:00:01]} 31. Rxe7 {[%clk 0:01:11]} 1-0


[Site "https://www.chess.com"]